bitfinex/quotes_ETHUSD_20240718
["timestamp","ask_amount","ask_price","bid_price","bid_amount"]
[1721323848584,2.92151,3422.9,3422.1,2.92212]
[1721323848783,2.92142,3423.0,3422.1,2.92212]
[1721323849093,2.92142,3423.0,3422.2,2.92208]
[1721323849277,2.92134,3423.1,3422.2,2.92201]
[1721323849474,2.92142,3423.0,3422.2,2.92201]
[1721323849963,0.584191,3423.6,3422.3,2.92197]
[1721323850163,0.584191,3423.6,3422.6,2.92168]
[1721323850164,2.92113,3423.4,3422.6,2.92168]
[1721323850366,3.505091,3423.6,3422.6,2.92168]
[1721323851064,2.92116,3423.3,3422.6,2.92168]
[1721323851288,2.92132,3423.1,3422.4,2.92192]
[1721323852902,2.92146,3423.0,3422.3,2.92199]
[1721323853201,2.92119,3423.3,3422.6,2.92169]
[1721323853406,2.92109,3423.4,3422.7,2.92166]
[1721323853579,2.9212,3423.3,3422.5,2.92178]
[1721323853779,2.9212,3423.3,3422.6,2.92173]
[1721323854476,2.9212,3423.3,3422.6,5.8434]
[1721323854691,2.9212,3423.3,3422.6,2.92167]
[1721323854903,2.92084,3423.7,3422.9,2.92149]
[1721323855989,2.92084,3423.7,3423.0,2.9214]
[1721323856684,2.9209,3423.6,3423.0,2.9214]
[1721323856880,2.9209,3423.6,3422.8,5.35261]
[1721323857210,2.9209,3423.6,3422.9,0.55]
[1721323857211,2.92096,3423.6,3422.9,0.55]
[1721323857792,2.92098,3423.5,3422.9,0.55]
[1721323858418,2.92125,3423.2,3422.5,2.92181]
[1721323858719,2.92117,3423.3,3422.6,2.92172]
[1721323860023,2.92125,3423.2,3422.6,2.92172]
[1721323860319,2.92133,3423.1,3422.4,2.92185]
[1721323860533,2.92125,3423.2,3422.3,2.92201]
[1721323860534,2.92143,3423.0,3422.3,2.92201]
[1721323860883,2.92133,3423.1,3422.5,2.92182]
[1721323861616,2.92143,3423.0,3422.3,2.92201]
[1721323862517,2.9216,3422.8,3422.0,2.4412]
[1721323862678,2.9216,3422.8,3422.1,2.92217]
[1721323862679,2.92163,3422.8,3422.1,2.92217]
[1721323864620,5.2209,3423.4,3422.2,2.92207]
[1721323864926,2.9213,3423.2,3422.5,2.92176]
[1721323865098,2.92123,3423.3,3422.3,6.3939]
[1721323865284,2.9209,3423.6,3422.3,3.47193]
[1721323865482,2.92137,3423.1,3422.3,3.47193]
[1721323865723,2.92123,3423.3,3422.5,2.92179]
[1721323865887,5.84246,3423.3,3422.5,2.92179]
[1721323866084,2.92126,3423.2,3422.5,2.92179]
[1721323866296,2.92118,3423.3,3422.5,2.92179]
[1721323866500,2.92118,3423.3,3422.7,2.92166]
[1721323867111,6.13416,3423.5,3422.7,5.84325]
[1721323867425,2.92102,3423.5,3422.9,2.92148]
[1721323867597,2.92102,3423.5,3422.7,5.23479]
[1721323867951,2.92082,3423.7,3422.9,2.92149]
[1721323868099,2.92082,3423.7,3423.0,2.92136]
[1721323869321,2.92082,3423.7,3422.8,2.92158]
[1721323869322,2.92107,3423.4,3422.8,2.92158]
[1721323870220,2.92096,3423.6,3422.9,2.92144]
[1721323871043,2.92099,3423.5,3422.8,2.9215]
[1721323871743,2.92099,3423.5,3422.4,2.324]
[1721323871744,2.92146,3423.0,3422.4,2.324]
[1721323872150,2.92171,3422.7,3422.0,2.92223]
[1721323874266,2.92197,3422.4,3421.6,5.8451]
[1721323874559,2.92197,3422.4,3421.5,2.4964]
[1721323874560,2.92197,3422.4,3421.7,5.92251]
[1721323874924,2.92197,3422.4,3421.8,2.92243]
[1721323875621,2.92176,3422.6,3421.8,2.92243]
[1721323876219,2.92184,3422.5,3421.8,2.92243]
[1721323876648,2.92176,3422.6,3421.8,2.92243]
[1721323877058,2.92162,3422.8,3421.9,2.92232]
[1721323877235,2.92162,3422.8,3421.9,3.47232]
[1721323877531,2.92162,3422.8,3422.1,2.92211]
[1721323877969,2.92162,3422.8,3422.2,2.92209]
[1721323879063,2.92167,3422.7,3422.0,2.92226]
[1721323879224,2.92167,3422.7,3422.1,0.55]
[1721323879422,3.505999,3422.7,3422.1,0.55]
[1721323879877,3.505999,3422.7,3422.1,3.47217]
[1721323880170,2.92167,3422.7,3422.1,3.47217]
[1721323881549,2.92145,3423.0,3422.1,3.47217]
[1721323881779,2.92163,3422.8,3422.1,3.47217]
[1721323882196,2.92163,3422.8,3422.1,6.39429]
[1721323882547,2.92163,3422.8,3422.1,6.39425]
[1721323882856,2.92163,3422.8,3422.1,3.47212]
[1721323884451,2.92163,3422.8,3422.1,0.55]
[1721323884650,3.213793,3422.8,3422.1,0.55]
[1721323884845,2.92171,3422.7,3422.1,0.55]
[1721323885389,2.92171,3422.7,3422.0,2.92225]
[1721323885390,2.92198,3422.4,3421.7,3.0]
[1721323886450,2.92198,3422.4,3421.7,5.92251]
[1721323886995,5.84397,3422.4,3421.7,5.92251]
[1721323887149,2.92198,3422.4,3421.7,5.92251]
[1721323888175,2.92198,3422.4,3421.7,2.92251]
[1721323888382,2.92198,3422.4,3421.5,8.34171]
[1721323888383,2.92207,3422.3,3421.5,8.34171]
[1721323888567,2.92207,3422.3,3421.6,0.55]
[1721323888990,2.92207,3422.3,3421.6,3.47259]
[1721323890264,2.92198,3422.4,3421.8,2.92243]
[1721323890668,2.92198,3422.4,3421.6,3.47255]
[1721323890669,5.84398,3422.4,3421.6,3.47255]
[1721323891606,2.92201,3422.3,3421.6,3.47255]
[1721323892399,2.92201,3422.3,3421.7,2.92252]
[1721323892973,2.9221,3422.2,3421.6,3.47257]
[1721323893396,5.84398,3422.4,3421.7,2.92252]
[1721323893601,2.92198,3422.4,3421.7,2.92252]
[1721323893910,2.92201,3422.3,3421.6,0.55]
[1721323894210,2.92201,3422.3,3421.6,3.47259]
[1721323894611,2.92201,3422.3,3421.7,2.92249]
[1721323894767,2.92179,3422.6,3421.7,2.92244]
[1721323895001,2.92198,3422.4,3421.7,2.92244]
[1721323895318,2.92203,3422.3,3421.7,2.92244]
[1721323896247,2.92219,3422.1,3421.5,5.41904]
[1721323898454,2.92219,3422.1,3421.5,2.92264]
[1721323898822,2.92227,3422.0,3421.4,2.92276]
[1721323899141,2.9224,3421.9,3421.2,2.3507]
[1721323899344,2.92252,3421.8,3421.0,5.92312]
[1721323899556,2.2876,3422.0,3420.8,2.92326]
[1721323899557,2.92274,3421.5,3420.8,2.92326]
[1721323900813,2.92274,3421.5,3420.9,0.55]
[1721323901444,2.9228,3421.4,3420.9,0.55]
[1721323901656,2.9228,3421.4,3420.8,0.55]
[1721323902413,2.92268,3421.6,3420.8,0.55]
[1721323902618,2.92268,3421.6,3420.9,2.92319]
[1721323903740,2.92268,3421.6,3420.9,2.92313]
[1721323904546,2.92268,3421.6,3420.9,5.84627]
[1721323905058,2.92268,3421.6,3421.0,2.92311]
[1721323906926,2.92268,3421.6,3420.9,2.92319]
[1721323907929,2.92268,3421.6,3420.9,5.84632]
[1721323908132,2.92268,3421.6,3421.0,2.92308]
[1721323908964,3.21241058,3423.8,3420.9,2.92313]
[1721323908965,2.14136991,3423.5,3421.6,2.3882]
[1721323909128,2.14136991,3423.5,3422.7,2.92162]
[1721323909129,2.92099,3423.5,3422.7,2.92162]
[1721323909332,2.92094,3423.6,3422.8,2.92158]
[1721323909570,2.92075,3423.8,3422.8,2.92158]
[1721323909728,3.749771,3423.8,3423.0,2.9214]
[1721323909926,2.92081,3423.7,3423.0,2.9214]
[1721323910131,2.4489,3424.0,3422.3,2.3882]
[1721323910358,2.92007,3424.6,3423.5,2.92096]
[1721323910752,2.92022,3424.4,3423.5,2.92096]
[1721323910948,3.749139,3424.4,3423.5,2.92096]
[1721323911867,3.749139,3424.4,3423.7,2.9208]
[1721323912082,2.92039,3424.2,3423.5,2.92096]
[1721323912237,2.92054,3424.1,3423.3,2.92112]
[1721323912431,2.92054,3424.1,3423.1,2.92126]
[1721323912432,2.92069,3423.9,3423.1,2.92126]
[1721323912747,3.212614,3424.0,3423.3,2.92115]
[1721323912943,2.92033,3424.3,3423.4,2.92104]
[1721323912944,2.9205,3424.1,3423.4,2.92104]
[1721323913553,2.92056,3424.0,3423.4,2.92104]
[1721323914267,2.92033,3424.3,3423.5,2.92098]
[1721323914433,5.36886,3424.7,3423.5,2.92098]
[1721323914434,2.92007,3424.6,3423.7,2.92079]
[1721323914632,3.707856,3424.6,3423.7,2.92079]
[1721323914961,2.92027,3424.4,3423.7,2.92079]
[1721323916127,3.707856,3424.6,3423.9,2.92062]
[1721323916841,3.707856,3424.6,3423.7,2.92079]
[1721323916842,2.92013,3424.5,3423.7,2.92075]
[1721323917048,3.8278016,3424.5,3423.7,2.92075]
[1721323917340,3.8278016,3424.5,3423.8,2.92072]
[1721323918981,0.9076716,3424.5,3423.9,2.92061]
[1721323919336,2.92005,3424.6,3423.9,2.92061]
[1721323919831,2.91997,3424.7,3424.0,2.92054]
[1721323920033,2.92006,3424.6,3424.0,2.92054]
[1721323920645,2.92006,3424.6,3423.9,2.92063]
[1721323921568,2.92036,3424.3,3423.4,2.92099]
[1721323921777,2.92036,3424.3,3423.5,2.92097]
[1721323922085,2.9205,3424.1,3423.4,2.92104]
[1721323922438,2.92036,3424.3,3423.6,2.92084]
[1721323923539,5.25686,3424.5,3423.7,2.92081]
[1721323923848,2.91999,3424.7,3423.9,2.92063]
[1721323924035,3.462889,3424.7,3423.9,2.92063]
[1721323924379,2.91999,3424.7,3424.0,2.92052]
[1721323924534,2.91987,3424.8,3424.0,2.92052]
[1721323925172,2.2561,3424.9,3424.0,2.92052]
[1721323925442,2.2561,3424.9,3424.2,2.92031]
[1721323925647,2.2561,3424.9,3424.3,2.92029]
[1721323925941,1.384521,3425.2,3423.9,2.92062]
[1721323925942,4.304121,3425.2,3423.9,2.92062]
[1721323926177,1.384521,3425.2,3424.6,2.92001]
[1721323926576,1.384521,3425.2,3424.4,2.9202]
[1721323926895,1.384521,3425.2,3424.4,2.92013]
[1721323927039,1.384521,3425.2,3424.6,2.92002]
[1721323927245,0.6595261,3425.1,3424.6,2.92002]
[1721323927548,2.9201,3424.6,3423.9,2.92059]
[1721323928075,2.91991,3424.8,3423.9,2.92059]
[1721323928277,5.21093,3425.1,3424.1,2.92041]
[1721323928479,9.4374121,3425.1,3424.1,2.92041]
[1721323928705,2.91973,3425.0,3424.3,2.92025]
[1721323929253,3.5177821,3425.1,3424.4,2.92021]
[1721323929487,5.21098,3425.1,3424.4,2.98608035]
[1721323929777,5.21098,3425.1,3424.4,0.06587035]
[1721323930280,5.21098,3425.1,3424.4,2.92019]
[1721323930590,5.21098,3425.1,3424.5,0.06575478]
[1721323931256,8.13068,3425.1,3424.5,0.06575478]
[1721323931657,5.21098,3425.1,3424.5,0.06575478]
[1721323932748,2.91971,3425.0,3424.5,0.06575478]
[1721323933079,5.21098,3425.1,3424.5,0.06575478]
[1721323933080,2.91979,3424.9,3424.5,0.06575478]
[1721323933381,2.91979,3424.9,3424.3,2.92028]
[1721323933544,5.21098,3425.1,3424.6,0.06569193]
[1721323933545,2.91968,3425.1,3424.6,0.06569193]
[1721323933751,2.91968,3425.1,3424.5,2.92012]
[1721323934177,2.91968,3425.1,3424.6,0.06569193]
[1721323934841,2.91971,3425.0,3424.6,0.06569193]
[1721323935047,2.91971,3425.0,3424.3,2.92028]
[1721323935289,2.91971,3425.0,3424.7,0.06562909]
[1721323935583,2.91971,3425.0,3424.3,2.92023]
[1721323935795,2.91971,3425.0,3424.8,0.06556624]
[1721323935946,2.91971,3425.0,3424.3,2.92028]
[1721323936367,2.91979,3424.9,3424.4,0.06581763]
[1721323938161,2.91997,3424.7,3424.4,0.06581763]
[1721323938593,2.91979,3424.9,3424.2,2.92038]
[1721323938790,2.91988,3424.8,3424.5,0.06575478]
[1721323939063,2.91988,3424.8,3424.6,0.06569193]
[1721323939256,2.91988,3424.8,3424.2,2.92038]
[1721323939459,2.91988,3424.8,3424.7,0.06562909]
[1721323939701,2.91971,3425.0,3424.2,2.92038]
[1721323939864,2.91971,3425.0,3424.4,2.92017]
[1721323940262,2.9196,3425.2,3424.5,2.98583561]
[1721323940572,2.91963,3425.1,3424.5,2.98583561]
[1721323941597,2.91963,3425.1,3424.5,0.06575561]
[1721323941899,2.9198,3424.9,3424.3,2.92022]
[1721323942097,2.9198,3424.9,3424.6,0.06569276]
[1721323942301,3.211593,3425.1,3424.3,2.92022]
[1721323942500,2.91971,3425.0,3424.7,0.06562992]
[1721323942676,2.91971,3425.0,3424.4,2.92021]
[1721323942880,2.91971,3425.0,3424.8,0.06556708]
[1721323943072,2.91971,3425.0,3424.4,2.92021]
[1721323943073,2.91961,3425.2,3424.5,2.92013]
[1721323943272,2.91963,3425.1,3424.9,0.06550424]
[1721323943483,2.91963,3425.1,3424.5,2.92013]
[1721323943808,2.91963,3425.1,3425.0,0.06544141]
[1721323944008,2.91963,3425.1,3424.5,2.92013]
[1721323944215,5.83932,3425.1,3424.5,2.92013]
[1721323944419,2.91963,3425.1,3424.6,0.06569276]
[1721323944714,2.91949,3425.3,3424.6,2.98573276]
[1721323944909,2.91954,3425.2,3424.6,2.98573276]
[1721323945585,2.91949,3425.3,3424.6,2.98573276]
[1721323946713,2.91936,3425.4,3424.8,2.91987]
[1721323947217,2.91936,3425.4,3424.9,0.06550424]
[1721323948902,2.91946,3425.3,3424.9,0.06550424]
[1721323949216,2.91946,3425.3,3424.6,2.91999]
[1721323949402,2.91946,3425.3,3425.0,0.06541675]
[1721323949719,2.91953,3425.2,3425.1,0.06535392]
[1721323949921,2.91953,3425.2,3424.6,2.91999]
[1721323950097,2.91953,3425.2,3425.1,0.06535392]
[1721323950296,2.91953,3425.2,3424.6,2.91999]
[1721323950492,2.91953,3425.2,3425.1,0.06535392]
[1721323950699,2.91953,3425.2,3424.6,2.91999]
[1721323951016,2.91953,3425.2,3425.1,0.06535392]
[1721323951349,2.91953,3425.2,3425.1,0.06526383]
[1721323951554,2.91936,3425.4,3425.1,0.06526383]
[1721323951736,2.91936,3425.4,3424.7,2.91991]
[1721323951911,2.91936,3425.4,3425.2,0.06520185]
[1721323952115,2.91936,3425.4,3424.7,2.91991]
[1721323952332,2.91936,3425.4,3425.3,0.06513903]
[1721323952656,2.91936,3425.4,3424.7,2.91991]
[1721323952826,2.91936,3425.4,3425.3,0.06513903]
[1721323953022,2.91936,3425.4,3424.7,2.91991]
[1721323953241,2.91936,3425.4,3424.8,0.06545318]
[1721323953424,2.91887,3426.0,3424.8,0.06545318]
[1721323953425,2.91887,3426.0,3424.9,2.91978]
[1721323953625,2.91924,3425.6,3425.0,0.06532751]
[1721323954148,2.91917,3425.7,3425.0,2.98495751]
[1721323954366,2.91917,3425.7,3425.1,2.9196]
[1721323954728,2.91917,3425.7,3425.2,0.0651891]
[1721323955855,2.91895,3425.9,3425.2,0.0651891]
[1721323957348,2.91916,3425.7,3425.2,0.0651891]
[1721323957924,2.91928,3425.5,3425.2,0.0651891]
[1721323958113,2.91938,3425.4,3424.7,5.27841]
[1721323958314,0.291916,3425.7,3425.3,0.06510674]
[1721323958315,2.91924,3425.6,3425.3,0.06510674]
[1721323958512,2.91924,3425.6,3424.9,2.91974]
[1721323958738,2.91928,3425.5,3425.4,0.06504392]
[1721323958953,2.91928,3425.5,3424.8,2.91984]
[1721323959155,2.91928,3425.5,3425.4,0.06504392]
[1721323959321,2.91928,3425.5,3424.8,2.91984]
[1721323959665,2.91928,3425.5,3424.9,2.91979]
[1721323959812,2.91928,3425.5,3424.9,5.90488805]
[1721323960019,2.91918,3425.7,3424.9,2.98509805]
[1721323960326,2.91906,3425.8,3424.9,2.98509805]
[1721323960548,2.91906,3425.8,3425.1,2.91961]
[1721323960856,5.83815,3425.8,3425.2,0.06518316]
[1721323961057,2.91906,3425.8,3425.2,0.06518316]
[1721323962069,5.83815,3425.8,3425.2,0.06518316]
[1721323962212,2.91906,3425.8,3425.2,0.06518316]
[1721323962416,2.9192,3425.6,3425.2,0.06518316]
[1721323962741,2.9192,3425.6,3425.0,2.91963]
[1721323962910,2.9192,3425.6,3425.3,0.06512033]
[1721323963114,2.9192,3425.6,3425.0,2.91963]
[1721323963326,2.9192,3425.6,3425.4,0.06505751]
[1721323963547,2.9192,3425.6,3425.0,2.91963]
[1721323963749,2.9192,3425.6,3425.5,0.0649947]
[1721323963928,2.9192,3425.6,3425.0,2.91963]
[1721323964266,2.9192,3425.6,3425.5,0.0649947]
[1721323964558,2.9192,3425.6,3425.1,0.06524598]
[1721323964713,2.9192,3425.6,3425.5,0.0649947]
[1721323965352,5.3915,3426.5,3425.3,2.38]
[1721323965552,2.91884,3426.1,3425.5,0.06495732]
[1721323965717,2.91884,3426.1,3425.3,5.29939]
[1721323966051,2.91897,3425.9,3425.6,0.06489451]
[1721323966259,2.91897,3425.9,3425.3,5.29939]
[1721323966551,2.91897,3425.9,3425.7,0.0648317]
[1721323966751,2.91897,3425.9,3425.3,5.29939]
[1721323966967,2.91917,3425.7,3425.0,2.91969]
[1721323967331,2.91928,3425.5,3425.0,2.91969]
[1721323967528,2.91928,3425.5,3425.1,0.06517632]
[1721323970675,2.91917,3425.7,3425.1,0.06517632]
[1721323970856,2.91884,3426.1,3425.4,2.91931]
[1721323971063,2.91884,3426.1,3425.5,0.06493183]
[1721323971593,2.91868,3426.2,3425.5,0.06493183]
[1721323971780,2.91883,3426.1,3425.5,0.06493183]
[1721323971983,2.91883,3426.1,3425.4,2.91931]
[1721323973004,2.91887,3426.0,3425.4,2.91931]
[1721323973413,2.91868,3426.2,3425.4,2.91931]
[1721323973698,2.91879,3426.1,3425.5,0.06490975]
[1721323974114,2.9189,3426.0,3425.5,0.06490975]
[1721323974296,2.9189,3426.0,3425.3,2.91943]
[1721323974502,2.91908,3425.8,3425.6,0.06484693]
[1721323974679,2.91908,3425.8,3425.2,5.31506]
[1721323974680,2.91908,3425.8,3425.2,2.3956]
[1721323974880,5.83782,3426.0,3425.7,0.06478413]
[1721323975076,5.83782,3426.0,3425.3,2.91945]
[1721323975395,2.91889,3426.0,3425.8,0.06472132]
[1721323975597,2.919,3425.9,3425.3,2.91945]
[1721323976314,2.91889,3426.0,3425.2,2.3956]
[1721323976608,2.91889,3426.0,3425.3,2.91944]
[1721323977110,2.91903,3425.8,3425.2,2.3956]
[1721323977317,2.91903,3425.8,3425.2,5.31512]
[1721323977819,5.83781,3426.0,3425.3,2.91945]
[1721323977987,2.91894,3425.9,3425.3,2.91945]
[1721323979777,2.91902,3425.8,3425.2,2.3956]
[1721323980120,2.91894,3425.9,3425.3,2.91944]
[1721323980410,2.91894,3425.9,3425.2,2.3956]
[1721323980411,2.91903,3425.8,3425.2,2.3956]
[1721323980612,2.91903,3425.8,3425.2,5.31512]
[1721323982432,2.91885,3426.0,3425.3,2.91942]
[1721323982600,2.91894,3425.9,3425.3,2.98442055]
[1721323982915,2.91903,3425.8,3425.3,0.06500055]
[1721323983115,2.91911,3425.7,3425.2,5.31513]
[1721323983325,2.91919,3425.6,3425.4,0.06493773]
[1721323983492,2.91919,3425.6,3425.2,2.3956]
[1721323983707,2.91903,3425.8,3425.2,5.31513]
[1721323983903,2.91903,3425.8,3425.3,0.06500055]
[1721323984133,2.91903,3425.8,3425.2,2.3956]
[1721323984333,2.91907,3425.8,3425.4,0.06493773]
[1721323984644,2.91912,3425.7,3425.2,2.3956]
[1721323984800,2.91912,3425.7,3425.5,0.06489275]
[1721323984999,2.91912,3425.7,3425.2,2.3956]
[1721323985314,2.86912,3425.7,3425.2,2.3956]
[1721323985512,2.86912,3425.7,3425.3,0.06501839]
[1721323985698,2.86912,3425.7,3425.2,2.3956]
[1721323985898,2.86912,3425.7,3425.4,0.06495387]
[1721323986135,2.86912,3425.7,3425.2,2.3956]
[1721323986303,2.86912,3425.7,3425.5,0.06489105]
[1721323986505,2.91902,3425.9,3425.2,5.31511]
[1721323986825,2.91873,3426.2,3425.6,0.06482824]
[1721323987156,3.0656389,3426.8,3425.8,2.919]
[1721323987157,2.91855,3426.4,3425.8,2.919]
[1721323987648,2.91855,3426.4,3425.9,0.06463558]
[1721323989140,2.91837,3426.6,3425.9,2.98356558]
[1721323989622,2.91848,3426.5,3425.9,2.98356558]
[1721323990225,2.91831,3426.7,3426.0,2.91885]
[1721323990443,2.91831,3426.7,3426.1,2.91872]
[1721323990613,2.91831,3426.7,3426.1,2.9831527]
[1721323992331,2.91849,3426.5,3426.1,0.0644327]
[1721323992538,2.91849,3426.5,3425.8,2.91897]
[1721323992748,2.9186,3426.3,3426.2,0.06436991]
[1721323992942,2.9186,3426.3,3425.7,5.17789]
[1721323993148,2.91849,3426.5,3425.8,2.98363109]
[1721323993345,2.91849,3426.5,3425.9,2.91893]
[1721323993634,2.91851,3426.4,3425.9,2.98348829]
[1721323994013,2.91829,3426.7,3425.9,2.98348829]
[1721323994335,2.91843,3426.5,3425.9,2.98348829]
[1721323994544,2.91837,3426.6,3425.9,2.98342829]
[1721323994750,2.91837,3426.6,3426.0,2.91884]
[1721323995037,2.91837,3426.6,3426.1,0.06442421]
[1721323995244,2.91843,3426.5,3426.1,0.06442421]
[1721323995446,3.51684489,3426.5,3426.1,0.06442421]
[1721323995646,2.91865,3426.3,3425.7,2.2588]
[1721323995946,2.91868,3426.2,3425.7,2.2588]
[1721323996130,2.91868,3426.2,3425.8,0.06460326]
[1721323996337,2.91868,3426.2,3425.7,2.2588]
[1721323996661,2.91868,3426.2,3425.8,0.06460326]
[1721323997029,2.91868,3426.2,3425.7,2.2588]
[1721323997208,2.91868,3426.2,3425.9,0.06454046]
[1721323997408,2.91868,3426.2,3425.8,0.06460326]
[1721323997725,2.91868,3426.2,3425.9,0.06454046]
[1721323997927,2.91868,3426.2,3425.7,2.2588]
[1721323998225,2.91868,3426.2,3425.8,0.06460326]
[1721323998554,2.91856,3426.4,3425.7,2.2588]
[1721323998736,2.91873,3426.2,3425.8,0.06460326]
[1721323998909,2.91873,3426.2,3425.5,2.91928]
[1721323998910,5.83748,3426.2,3425.5,2.91928]
[1721323999255,2.91911,3425.7,3425.6,0.06472888]
[1721323999551,2.91911,3425.7,3425.1,7.44]
[1721323999753,2.9192,3425.6,3425.2,0.06500562]
[1721324000727,2.91928,3425.5,3425.2,0.06500562]
[1721324001251,2.91899,3425.9,3425.2,2.98448562]
[1721324001422,2.91899,3425.9,3425.2,0.06500562]
[1721324001756,2.9191,3425.8,3425.2,0.06500562]
[1721324002841,2.91917,3425.7,3425.2,0.06500562]
[1721324003350,2.91927,3425.6,3425.2,0.06500562]
[1721324003512,2.91913,3425.7,3425.2,0.06500562]
[1721324003963,2.91916,3425.7,3425.2,0.06500562]
[1721324004514,2.91894,3425.9,3425.2,2.98448562]
[1721324004719,2.91902,3425.8,3425.2,2.98448562]
[1721324006768,2.91902,3425.8,3425.2,0.06500562]
[1721324006947,2.91902,3425.8,3425.0,5.3747]
[1721324006948,2.91916,3425.7,3425.0,5.3747]
[1721324007133,2.91916,3425.7,3425.1,0.06515425]
[1721324007332,2.91916,3425.7,3425.1,2.98475425]
[1721324007636,2.91916,3425.7,3425.1,0.06515425]
[1721324008543,2.91921,3425.6,3425.1,0.06515425]
[1721324009995,2.91929,3425.5,3425.1,0.06515425]
[1721324010141,2.91918,3425.7,3425.1,0.06515425]
[1721324010483,0.316704,3426.1,3425.1,0.06515425]
[1721324010484,2.91945,3425.3,3425.1,0.06515425]
[1721324011298,2.91929,3425.5,3425.1,0.06515425]
[1721324011651,3.235484,3426.1,3425.1,0.06515425]
[1721324011652,2.9188,3426.1,3425.4,2.91929]
[1721324011875,2.9188,3426.1,3425.5,1.045]
[1721324012054,2.9188,3426.1,3425.5,1.10991146]
[1721324012380,2.9188,3426.1,3425.5,0.06491146]
[1721324012579,2.91894,3425.9,3425.3,1.045]
[1721324012777,5.83795,3425.9,3425.4,0.61486684]
[1721324012980,5.83795,3425.9,3425.4,0.06486684]
[1721324012981,2.91894,3425.9,3425.4,0.06486684]
[1721324013190,2.91916,3425.7,3425.2,2.306]
[1721324013358,2.91469545,3425.7,3425.5,0.06480403]
[1721324013681,2.91469545,3425.7,3425.2,2.306]
[1721324014139,2.9192,3425.6,3425.3,0.06492966]
[1721324014344,2.91469545,3425.7,3425.2,2.306]
[1721324014644,2.91897,3425.9,3425.3,0.06492966]
[1721324014846,5.83798,3425.9,3425.3,0.06492966]
[1721324015087,2.91897,3425.9,3425.3,0.06492966]
[1721324016558,2.91909,3425.8,3425.3,0.06492966]
[1721324016790,2.91912,3425.7,3425.2,2.306]
[1721324017004,2.91897,3425.9,3425.4,0.06487958]
[1721324017174,2.91897,3425.9,3425.3,0.0649424]
[1721324017375,5.83799,3425.9,3425.3,0.0649424]
[1721324017586,2.91897,3425.9,3425.3,0.0649424]
[1721324017764,2.91911,3425.7,3425.3,0.0649424]
[1721324018108,2.91904,3425.8,3425.2,5.22552]
[1721324018262,2.91904,3425.8,3425.4,0.06487958]
[1721324018615,10.5656589,3426.8,3425.5,0.06481677]
[1721324018616,7.6474289,3426.8,3425.5,0.06481677]
[1721324018769,2.91877,3426.1,3425.6,2.4159]
[1721324018969,2.91873,3426.2,3425.7,0.06468435]
[1721324019261,2.91877,3426.1,3425.7,0.06468435]
[1721324021173,5.83727,3426.3,3425.7,0.06468435]
[1721324021372,2.91869,3426.2,3425.7,0.06468435]
[1721324022083,2.9186,3426.3,3425.7,0.06468435]
[1721324022786,2.91873,3426.2,3425.7,0.06468435]
[1721324023366,2.91856,3426.4,3425.7,2.98378435]
[1721324023570,2.91865,3426.3,3425.7,2.98378435]
[1721324023816,2.91902,3425.8,3425.7,0.06468435]
[1721324024313,2.91902,3425.8,3425.2,2.3572]
[1721324024472,2.91902,3425.8,3425.7,0.06464442]
[1721324024671,2.91902,3425.8,3425.2,2.3572]
[1721324024908,2.91902,3425.8,3425.7,0.06464442]
[1721324025071,2.91902,3425.8,3425.2,2.3572]
[1721324025274,2.91902,3425.8,3425.7,0.06464442]
[1721324025492,2.91902,3425.8,3425.2,2.3572]
[1721324026130,2.91902,3425.8,3425.3,0.06489568]
[1721324026340,2.91895,3425.9,3425.3,0.06489568]
[1721324026495,2.91895,3425.9,3425.3,3.0]
[1721324026695,2.91895,3425.9,3425.4,0.06483286]
[1721324027403,2.91902,3425.8,3425.4,0.06483286]
[1721324028207,3.96379,3426.1,3425.4,0.06483286]
[1721324028429,2.3199,3426.7,3425.5,2.91919]
[1721324028430,2.9186,3426.3,3425.5,2.91919]
[1721324028738,2.9186,3426.3,3425.6,2.91917]
[1721324028936,2.91868,3426.2,3425.7,0.06466226]
[1721324029100,2.91868,3426.2,3425.8,2.366]
[1721324029428,2.91868,3426.2,3425.9,0.06453665]
[1721324029595,2.91837,3426.6,3425.9,0.06453665]
[1721324030195,2.91837,3426.6,3425.9,2.98341665]
[1721324030943,2.91844,3426.5,3425.9,0.06453665]
[1721324032455,2.91856,3426.4,3425.9,0.06453665]
[1721324033348,2.91843,3426.5,3425.9,2.98344665]
[1721324033658,1.045,3426.6,3425.9,0.06453665]
[1721324033819,2.91861,3426.3,3425.9,0.06453665]
[1721324034015,1.045,3426.4,3425.9,0.06453665]
[1721324034261,2.91882,3426.1,3425.5,5.2654]
[1721324034421,2.91882,3426.1,3426.0,0.06447385]
[1721324034617,2.91882,3426.1,3425.5,5.2654]
[1721324034618,2.91864,3426.3,3425.5,5.2654]
[1721324034863,2.91864,3426.3,3426.0,0.06447385]
[1721324035035,2.91864,3426.3,3425.6,2.91919]
[1721324035036,2.9187,3426.2,3425.6,2.91919]
[1721324035586,2.91877,3426.1,3425.7,0.06466226]
[1721324035749,2.91877,3426.1,3425.5,5.2654]
[1721324035950,2.91877,3426.1,3425.6,0.06472506]
[1721324037442,1.045,3426.4,3425.6,0.06472506]
[1721324037443,2.91864,3426.3,3425.6,0.06472506]
[1721324037650,2.91883,3426.1,3425.6,0.06472506]
[1721324037967,2.9189,3426.0,3425.6,0.06472506]
[1721324040195,2.91857,3426.4,3425.7,1.045]
[1721324040474,2.91857,3426.4,3425.6,0.06472506]
[1721324040475,2.91866,3426.3,3425.8,0.06458501]
[1721324040792,2.91866,3426.3,3425.6,5.91918]
[1721324041274,2.91866,3426.3,3425.7,0.06464782]
[1721324041834,2.91845,3426.5,3426.0,2.3388]